{"text_format":"2","workbook":"xlsx","n_sheets":1,"sheets":["Orçamento"],"not_rendered":{"charts":0,"images":1,"macros":0,"external_links":6,"defined_names":4608,"comments":0,"pivot_tables":0},"unopened":[],"bounds":{"document_bytes":16777216,"sheet_cells":100000,"run_cost":"one","rows_first":2000,"rows_last":500,"rows_between":2000,"halvings":0,"cell_chars":16384,"cell_head_chars":4096},"cells_cut":0,"cells_raw":0,"read":"whole","date_system":"1900"}

{"sheet":"Orçamento","index":0,"n_rows":236,"n_cols":6,"rows_kept":236,"cut":false,"hidden":false,"merged":[[229,1,229,4],[199,1,199,4],[200,1,200,4],[0,0,0,5],[1,0,1,5],[16,1,16,4],[135,1,135,4],[152,1,152,4],[183,1,183,4]]}
["PLANILHA DE CUSTOS DO VALOR DO ORÇAMENTO DE REFERÊNCIA (PLANILHA RESUMIDA)"]
["ORÇAMENTO DO PROJETO PONTAL - ÁREA SUL                                                                                                                                   SETORES DE COLONIZAÇÃO 3 A 17 E 31 (MANCHA NOVA)"]
[]
[" ",null,null,null,"PREÇO","PREÇO"]
["ITEM","DESCRIÇÃO","UNID.","QUANTID.","UNIT.","TOTAL"]
[{"$nulls":4},"C/BDI"]
[]
["1.","SERVIÇOS PRELIMINARES, ADMINISTRAÇÃO LOCAL E MANUTENÇÃO DO CANTEIRO DE OBRAS",null,null,null,{"$f":"F9+F12+F15","v":2440576.21}]
["1.1","MOBILIZAÇÃO E DESMOBILIZAÇÃO",null,null,null,{"$f":"SUM(F10:F11)","v":46209.82}]
["1.1.1","MOBILIZAÇÃO DE PESSOAL E EQUIPAMENTOS","un ",1,23104.91,{"$f":"ROUND(+E10*D10,2)","v":23104.91}]
["1.1.2","DESMOBILIZAÇÃO DE PESSOAL E EQUIPAMENTOS","un ",1,23104.91,23104.91]
["1.2","INSTALAÇÃO DE CANTEIRO DE OBRAS E PLACA DA OBRA",null,null,null,{"$f":"SUM(F13:F14)","v":428017.04}]
["1.2.1","INSTALAÇÃO DE CANTEIRO DE OBRAS","m2",980,427.54,{"$f":"ROUND(+E13*D13,2)","v":418989.2}]
["1.2.2","PLACA DE OBRA EM CHAPA DE ACO GALVANIZADO","m2",24,376.16,{"$f":"ROUND(+E14*D14,2)","v":9027.84}]
["1.3","ADMINISTRAÇÃO LOCAL E MANUTENÇÃO DO CANTEIRO",null,null,null,{"$f":"SUM(F16:F16)","v":1966349.35}]
["1.3.1","ADMINISTRAÇÃO LOCAL E MANUTENÇÃO DO CANTEIRO","un ",1,1966349.35,1966349.35]
["2.","ESTAÇÕES DE PRESSURIZAÇÃO, COM NOVOS MODELOS DE SUBESTAÇÃO",null,null,null,{"$f":"F18+F60+F65","v":9030398.9000000004}]
["2.1","OBRAS CIVIS",null,null,null,{"$f":"SUM(F19:F59)","v":2910580.03}]
["2.1.1","DESMATAMENTO E LIMPEZA MECANIZADA DE TERRENO COM ARVORES ATE Ø 15CM, UTILIZANDO TRATOR DE ESTEIRAS","m2",2687.3,0.52,{"$f":"ROUND(+E19*D19,2)","v":1397.4}]
["2.1.2","LOCAÇÃO DA OBRA - EXECUÇÃO DE GABARITO","m2",2687.3,4.99,13409.63]
["2.1.3","ESC. CARGA TRANSP. MAT 1A CAT DMT 50 A 200M C/E","m3",3673,4.59,{"$f":"ROUND(+E21*D21,2)","v":16859.07}]
["2.1.4","ESC. CARGA TRANSP. MAT 2A CAT DMT 800 A 1000M C/E","m3",830,8.3000000000000007,{"$f":"ROUND(+E22*D22,2)","v":6889}]
["2.1.5","ESC. CARGA TRANSP. MAT 3ª CAT DMT 800 A 1000 M","m3",3065,32.78,100470.7]
["2.1.6","MOMENTO EXTRAORDINÁRIO DE TRANSP. DE MAT. DE 1ª E/OU 2ª","m3 x km",25600,1.42,36352]
["2.1.7","MOMENTO EXTRAORDINÁRIO DE TRANSP. DE MAT. DE 3ª","m3 x km",18390,2.81,{"$f":"ROUND(+E25*D25,2)","v":51675.9}]
["2.1.8","REATERRO COMPACTADO MECANICAMENTE, S/ CONTROLE","m3",1890,19.34,36552.6]
["2.1.9","CONFORMACAO GEOMETRICA DE PLATAFORMA PARA EXECUCAO DE REVESTIMENTO PRIMARIO","m2",3600,0.17,{"$f":"ROUND(+E27*D27,2)","v":612}]
["2.1.10","REVESTIMENTO PRIMÁRIO C/ MAT. DE JAZIDA, C/T ATE 1000m","m3",720,14.34,10324.799999999999]
["2.1.11","CONCRETO ESTRUTURAL Fck = 20 Mpa, LANÇADO E ADENSADO","m3",1793,430.31,771545.83]
["2.1.12","CONCRETO SIMPLES Fck = 15 Mpa, LANÇADO E ADENSADO","m3",100.5,348.58,35032.29]
["2.1.13","ARMADURA DE AÇO CA 50/60 - MONTAGEM","kg",127413,2.4500000000000002,312161.84999999998]
["2.1.14","FORMA PLANA PARA ESTRUTURAS, EM COMPENSADO PLASTIFICADO DE 12MM, 05 USOS, EXC LUSIVE ESCORAMENTO - REVISADA 07.2015 ","m2",7143,36.950000000000003,263933.84999999998]
["2.1.15","FORMA TABUA PARA CONCRETO EM FUNDACAO C/ REAPROVEITAMENTO 5X","m2",60,37.61,2256.6]
["2.1.16","CIMBRAMENTO DE MADEIRA COM BARROTES SEÇÃO 6X6CM, PARA ESTRUTURAS ALTAS OU RES ERVATÓRIOS, INCLUSIVE RAMPA EM TÁBUA. ","m3",573,52.48,30071.040000000001]
["2.1.17","ALVENARIA BLOCO CONCRETO ESTRUTURAL 19X19X39CM, FBK 8 MPA, ESP = 0,19M,  COM ARGAMASSA TRAÇO T5 - 1:2:8 (CIMENTO/CAL/AREIA), JUNTA 2CM ","m2",1771,72.599999999999994,128574.6]
["2.1.18","ALVENARIA DE ELEMENTO VAZADO DE CONCRETO (20X20X20cm) C/ARG. CIMENTO E AREIA TRAÇO 1:3","m2",190,204.06,38771.4]
["2.1.19","CHAPISCO APLICADO EM ALVENARIAS E ESTRUTURAS DE CONCRETO INTERNAS, COM COLHER DE PEDREIRO.  ARGAMASSA TRAÇO 1:3 COM PREPARO EM BETONEIRA 400L. AF_06/2014","m2",3121.1,3.23,10081.15]
["2.1.20","(COMPOSIÇÃO REPRESENTATIVA) DO SERVIÇO DE EMBOÇO/MASSA ÚNICA, APLICADO MANUALMENTE, TRAÇO 1:2:8, EM BETONEIRA DE 400L, PAREDES INTERNAS, COM EXECUÇÃO DE TALISCAS, EDIFICAÇÃO HABITACIONAL UNIFAMILIAR (CASAS) E EDIFICAÇÃO PÚBLICA PADRÃO. AF_12/2014","m2",3121.1,30.2,94257.22]
["2.1.21","APLICAÇÃO MANUAL DE PINTURA COM TINTA LÁTEX ACRÍLICA EM PAREDES, DUAS DEMÃOS. AF_06/2014","m2",3121.1,11.92,37203.51]
["2.1.22","VERNIZ POLIURETANO BRILHANTE EM CONCRETO OU TIJOLO, TRES DEMAOS","m2",3273.1,19.91,65167.42]
["2.1.23","PINTURA ESMALTE FOSCO, DUAS DEMAOS, SOBRE SUPERFICIE METALICA, INCLUSO UMA DEMAO DE FUNDO ANTICORROSIVO. UTILIZACAO DE REVOLVER ( AR-COMPRIMIDO).","m2",630.28,19.7,12416.52]
["2.1.24","PISO CIMENTADO TRACO 1:3 (CIMENTO E AREIA) ACABAMENTO LISO ESPESSURA 2,5 CM PREPARO MECANICO DA ARGAMASSA","m2",1935.5,51.13,98962.12]
["2.1.25","ARGAMASSA TRAÇO 1:3 (CIMENTO E AREIA MÉDIA) PARA CONTRAPISO, PREPARO MECÂNICO COM BETONEIRA 400 L. AF_06/2014","m3",7.35,441.03,3241.57]
["2.1.26","PISO DE BORRACHA PASTILHADO, ESPESSURA 7MM, FIXADO COM COLA","m2",18,165.71,2982.78]
["2.1.27","RODAPÉ DE CIMENTO LISO COM 15 cm DE ALTURA","m",38.5,15.84,609.84]
["2.1.28","RODAPÉ CIMENTADO TRAÇO T1, H = 7 CM, E = 1,5 CM ","m",700,8.09,5663]
["2.1.29","TELHAMENTO COM TELHA DE FIBROCIMENTO TIPO CANALETE 49 (ETERNIT OU SIMILAR) ","m2",1897,169.73,321977.81]
["2.1.30","PORTA EM CHAPA LISA DE ALUMÍNIO, COR N/P/B, COMUM, DE ABRIR OU CORRER ","m2",147,339.64,49927.08]
["2.1.31","JANELA DE ALUMÍNIO MAXIM-AR, FIXAÇÃO COM ARGAMASSA, COM VIDROS, PADRONIZADA. AF_07/2016","m2",94.1,737.84,69430.740000000005]
["2.1.32","PORTAO EM TELA ARAME GALVANIZADO N.12 MALHA 2\" E MOLDURA EM TUBOS DE ACO COM DUAS FOLHAS DE ABRIR, INCLUSO FERRAGENS","m2",54,1063.8599999999999,{"$f":"ROUND(+E50*D50,2)","v":57448.44}]
["2.1.33","FABRICAÇÃO E MONTAGEM DE APOIOS DE CANTONEIRAS (2\" X 2\" X 1/4\") PARA GRADES TIPO 1 (ALÇAPÃO),  COM CHUMBADOR DE EXPANSÃO A CADA 30 cm","m",129.80000000000001,71.89,{"$f":"ROUND(+E51*D51,2)","v":9331.32}]
["2.1.34","FORNECIMENTO E COLOCAÇÃO DE GRADE METÁLICA DE PROTEÇÃO DO POÇO DE SUCÇÃO (ALÇAPÃO) - TIPO 1 (59x59 cm), INCLUSO PINTURA COM FUNDO ANTICORROSIVO TIPO ZARCÃO","un",55,329.8,18139]
["2.1.35","FABRICAÇÃO E MONTAGEM DE APOIOS DE CANTONEIRAS (2\" X 2\" X 1/4\") PARA GRADES TIPO 2,  COM CHUMBADOR DE VERGALHÃO DE AÇO  CA-50 DN 6.3 mm C/10 cm A CADA 30 cm","m",18,57.94,1042.92]
["2.1.36","FORNECIMENTO E COLOCAÇÃO  DE GRADE METÁLICA DE ACESSO DE SERVIÇO AO POÇO DE BOMBAS - TIPO 2 (90x90 cm), INCLUSO PINTURA COM FUNDO ANTICORROSIVO TIPO ZARCÃO","un",5,744.91,3724.55]
["2.1.37","FABRICAÇÃO E MONTAGEM  DE APOIOS DE CANTONEIRAS (2\" X 2\" X 1/4\") PARA TAMPAS EM CHAPA XADREZ,  COM VERGALHÃO DE AÇO  CA-50 DN 6.3 mm E CHUMBADOR DE VERGALHÃO DE AÇO  CA-50 DN 6.3 mm C/10 cm A CADA 30 cm","m",234.4,61.12,14326.53]
["2.1.38","FORNECIMENTO E MONTAGEM  DE TAMPAS EM CHAPA XADREZ","m2",102.18,589.66999999999996,60252.480000000003]
["2.1.39","ESCADA TIPO MARINHEIRO EM ACO CA-50 9,52MM INCLUSO PINTURA COM FUNDO ANTICORROSIVO TIPO ZARCAO","m",120.7,70.77,8541.94]
["2.1.40","FONECIMENTO E INSTALAÇÃO DE TUBO DRENAGEM DE TRANSFORMADORES, INCLUINDO CONEXÕES","cj",5,76.05,380.25]
["2.1.41","GUARDA-CORPO METÁLICO - FORNEC. E INSTAL.","m",398.8,272.27,108581.28]
["2.2.","FORNECIMENTO DE EQUIPAMENTOS",null,null,null,{"$f":"+F61","v":768448.31}]
["2.2.1","EQUIPAMENTOS HIDROMECÂNICOS",null,null,null,{"$f":"SUM(F62:F64)","v":768448.31}]
["2.2.1.1","ARMADURA DE AÇO CA 50/60 - FORNECIMENTO DOS MATERIAIS","kg",127413,5.94,{"$f":"ROUND(+E62*D62,2)","v":756833.22}]
["2.2.1.2","CONJUNTO MOTO-BOMBA SUBMERSÍVEL DE DRENAGEM COMPLETA C/ TUBULAÇÃO DE DRENAGEM - P = 2 cv","cj",1,3908.97,3908.97]
["2.2.1.3","JUNTA DE PAPELÃO GRAFITADO PARA FLANGE FACE PLANA (FF) PN-10, D=200MM (DESCAR GA) ","cj",188,40.99,7706.12]
["2.3.","MONTAGEM DOS EQUIPAMENTOS",null,null,null,{"$f":"+F66+F84","v":5351370.5599999996}]
["2.3.1.","EQUIPAMENTOS HIDROMECÂNICOS",null,null,null,{"$f":"SUM(F67:F83)","v":222002.05}]
["2.3.1.1","MONT. CONJ. MOTO-BOMBA VERTICAL TIPO \"IN LINE\"  -  POT=50 cv","cj",16,500,{"$f":"ROUND(+E67*D67,2)","v":8000}]
["2.3.1.2","MONT. CONJ. MOTOBOMBA VERTICAL \"IN LINE\" POT= 60 hp","cj",27,600,16200]
["2.3.1.3","MONT. CONJ. MOTOBOMBA VERTICAL \"IN LINE\" POT= 75 hp","cj",12,600,7200]
["2.3.1.4","MONT. CONJ. MOTO-BOMBA SUBMERSÍVEL POT=2 cv C/TUBULAÇÃO DE DRENAGEM","cj",11,150,1650]
["2.3.1.5","MONTAGEM DE TALHA MANUAL COM MONOVIA DE 3,0 ton","un",11,900,9900]
["2.3.1.6","MONTAGEM DE TALHA MANUAL COM MONOVIA DE 1,0 ton","un",11,900,9900]
["2.3.1.7","MONTAGEM DE GRADE DE PROTEÇÃO ","un",55,450,24750]
["2.3.1.8","MONTAGEM VÁLVULA BORBOLETA SEM ATUADOR, PN-10, DN=250mm","un",55,350,19250]
["2.3.1.9","MONTAGEM VÁLVULA BORBOLETA SEM ATUADOR, PN-10, DN=200mm","un",55,350,19250]
["2.3.1.10","MONT. VÁLV. RETENÇÃO C/ DESLOCAMENTO AXIAL, FLANG., DN=200mm, PN-10","un",55,350,19250]
["2.3.1.11","MONT. VENTOSA DE SIMPLES EFEITO, DN=50mm, PN-10","un",71,100,7100]
["2.3.1.12","MONTAGEM DE JUNTA DRESSER, DN=250mm, PN-10","cj",55,350,19250]
["2.3.1.13","MONTAGEM DE JUNTA DRESSER, DN=200mm, PN-10","cj",55,350,19250]
["2.3.1.14","MONTAGEM DOS TUBOS E PEÇAS ESPECIAIS DO BARRILETE","cj",16,1200,{"$f":"ROUND(+E80*D80,2)","v":19200}]
["2.3.1.15","JATEAMENTO COM AREIA EM ESTRUTURA METALICA","m²",274.11,17.52,{"$f":"ROUND(+E81*D81,2)","v":4802.41}]
["2.3.1.16","FUNDO PREPARADOR PRIMER A BASE DE EPOXI, PARA ESTRUTURA METALICA, UMA DEMAO, ESPESSURA DE 25 MICRA.","m²",274.11,11.16,{"$f":"ROUND(+E82*D82,2)","v":3059.07}]
["2.3.1.17","PINTURA EPOXI, DUAS DEMAOS","m²",274.11,51.04,{"$f":"ROUND(+E83*D83,2)","v":13990.57}]
["2.3.2.","EQUIPAMENTOS ELÉTRICOS",null,null,null,{"$f":"SUM(F85:F135)","v":5129368.51}]
["2.3.2.1","ESTAÇÃO DE PRESSURIZAÇÃO EP03"]
["2.3.2.1.1","SUBESTAÇÃO REBAIXADORA 225 KVA - 13,8KV / 380-220V","un",1,25525.73,{"$f":"ROUND(+E86*D86,2)","v":25525.73}]
["2.3.2.1.2","PAINEL DE COMANDO E PROTEÇÃO DE MOTORES CONFORME ESPECIFICAÇÃO TÉCNICA","un",1,222793.27,222793.27]
["2.3.2.1.3","SISTEMA DE ATERRAMENTO E SPDA","un",1,14389.99,14389.99]
["2.3.2.1.4","ILUMINAÇÃO E TOMADAS DE USO GERAL","un",1,11354.19,11354.19]
["2.3.2.2","ESTAÇÃO DE PRESSURIZAÇÃO EP04 E EP05"]
["2.3.2.2.1","SUBESTAÇÃO ABRIGADA DE ATÉ 2 X 225KVA - 13,8KV/380-220V","un",1,219759.95,219759.95]
["2.3.2.2.2","PAINEL DE COMANDO E PROTEÇÃO DE MOTORES CONFORME ESPECIFICAÇÃO TÉCNICA","un",2,234844.11,469688.22]
["2.3.2.2.3","SISTEMA DE ATERRAMENTO E SPDA","un",1,22149.79,22149.79]
["2.3.2.2.4","ILUMINAÇÃO E TOMADAS DE USO GERAL","un",1,22708.38,22708.38]
["2.3.2.3","ESTAÇÃO DE PRESSURIZAÇÃO EP06 "]
["2.3.2.3.1","SUBESTAÇÃO REBAIXADORA 225 KVA - 13,8KV / 380-220V","un",1,25525.73,25525.73]
["2.3.2.3.2","PAINEL DE COMANDO E PROTEÇÃO DE MOTORES CONFORME ESPECIFICAÇÃO TÉCNICA","un",1,234844.11,234844.11]
["2.3.2.3.3","SISTEMA DE ATERRAMENTO E SPDA","un",1,14389.99,14389.99]
["2.3.2.3.4","ILUMINAÇÃO E TOMADAS DE USO GERAL","un",1,11354.19,11354.19]
["2.3.2.4","ESTAÇÃO DE PRESSURIZAÇÃO EP07 E EP08"]
["2.3.2.4.1","SUBESTAÇÃO REBAIXADORA 225 KVA - 13,8KV / 380-220V","un",2,25525.73,51051.46]
["2.3.2.4.2","PAINEL DE COMANDO E PROTEÇÃO DE MOTORES CONFORME ESPECIFICAÇÃO TÉCNICA","un",2,240081.26,480162.52]
["2.3.2.4.3","SISTEMA DE ATERRAMENTO E SPDA","un",1,22149.79,22149.79]
["2.3.2.4.4","ILUMINAÇÃO E TOMADAS DE USO GERAL","un",1,22708.38,22708.38]
["2.3.2.5","ESTAÇÃO DE PRESSURIZAÇÃO EP09 E EP10"]
["2.3.2.5.1","SUBESTAÇÃO ABRIGADA DE ATÉ 2 X 225KVA - 13,8KV/380-220V","un",1,219759.95,219759.95]
["2.3.2.5.2","PAINEL DE COMANDO E PROTEÇÃO DE MOTORES CONFORME ESPECIFICAÇÃO TÉCNICA","un",2,216021.82,432043.64]
["2.3.2.5.3","SISTEMA DE ATERRAMENTO E SPDA","un",1,22149.79,22149.79]
["2.3.2.5.4","ILUMINAÇÃO E TOMADAS DE USO GERAL","un",1,22708.38,22708.38]
["2.3.2.6","ESTAÇÃO DE PRESSURIZAÇÃO EP11 E EP 12"]
["2.3.2.6.1","SUBESTAÇÃO ABRIGADA DE ATÉ 2 X 225KVA - 13,8KV/380-220V","un",1,219759.95,219759.95]
["2.3.2.6.2","PAINEL DE COMANDO E PROTEÇÃO DE MOTORES CONFORME ESPECIFICAÇÃO TÉCNICA","un",2,240081.26,480162.52]
["2.3.2.6.3","SISTEMA DE ATERRAMENTO E SPDA","un",1,22149.79,22149.79]
["2.3.2.6.4","ILUMINAÇÃO E TOMADAS DE USO GERAL","un",1,22708.38,22708.38]
["2.3.2.7","ESTAÇÃO DE PRESSURIZAÇÃO EP13 E EP14"]
["2.3.2.7.1","SUBESTAÇÃO ABRIGADA DE ATÉ 2 X 225KVA - 13,8KV/380-220V","un",1,219759.95,219759.95]
["2.3.2.7.2","PAINEL DE COMANDO E PROTEÇÃO DE MOTORES CONFORME ESPECIFICAÇÃO TÉCNICA","un",1,222793.27,222793.27]
["2.3.2.7.3","SISTEMA DE ATERRAMENTO E SPDA","un",1,22149.79,22149.79]
["2.3.2.7.4","ILUMINAÇÃO E TOMADAS DE USO GERAL","un",1,22708.38,22708.38]
["2.3.2.8","ESTAÇÃO DE PRESSURIZAÇÃO EP15"]
["2.3.2.8.1","SUBESTAÇÃO REBAIXADORA 225 KVA - 13,8KV / 380-220V","un",1,25525.73,25525.73]
["2.3.2.8.2","PAINEL DE COMANDO E PROTEÇÃO DE MOTORES CONFORME ESPECIFICAÇÃO TÉCNICA","un",1,216021.82,216021.82]
["2.3.2.8.3","SISTEMA DE ATERRAMENTO E SPDA","un",1,14389.99,14389.99]
["2.3.2.8.4","ILUMINAÇÃO E TOMADAS DE USO GERAL","un",1,11354.19,11354.19]
["2.3.2.9","ESTAÇÃO DE PRESSURIZAÇÃO EP16 E EP17"]
["2.3.2.9.1","SUBESTAÇÃO ABRIGADA DE ATÉ 2 X 225KVA - 13,8KV/380-220V","un",1,219759.95,219759.95]
["2.3.2.9.2","PAINEL DE COMANDO E PROTEÇÃO DE MOTORES CONFORME ESPECIFICAÇÃO TÉCNICA","un",2,234844.11,469688.22]
["2.3.2.9.3","SISTEMA DE ATERRAMENTO E SPDA","un",1,22149.79,22149.79]
["2.3.2.9.4","ILUMINAÇÃO E TOMADAS DE USO GERAL","un",1,22708.38,22708.38]
["2.3.2.10","ESTAÇÃO DE PRESSURIZAÇÃO EP31"]
["2.3.2.10.1","SUBESTAÇÃO REBAIXADORA 225 KVA - 13,8KV / 380-220V - C/ TRANSFORMADOR","un",1,44906.44,44906.44]
["2.3.2.10.2","PAINEL DE COMANDO E PROTEÇÃO DE MOTORES CONFORME ESPECIFICAÇÃO TÉCNICA","un",1,216021.82,216021.82]
["2.3.2.10.3","SISTEMA DE ATERRAMENTO E SPDA","un",1,14389.99,14389.99]
["2.3.2.10.4","ILUMINAÇÃO E TOMADAS DE USO GERAL","un",1,11354.19,11354.19]
["2.3.2.11","PROJETO EXECUTIVO E \"AS BUILT\", COMISSIONAMENTO E START-UP","un",1,41688.519999999997,41688.519999999997]
["3.","RESERVATÓRIOS DE SERVIÇO - RS 3 AO 10 E O 26",null,null,null,{"$f":"F137+F151","v":6242091.0700000003}]
["3.1","OBRAS CIVIS",null,null,null,{"$f":"SUM(F138:F150)","v":4137100.88}]
["3.1.1","DESMATAMENTO E LIMPEZA MECANIZADA DE TERRENO COM ARVORES ATE Ø 15CM, UTILIZANDO TRATOR DE ESTEIRAS","m2",56700,0.52,{"$f":"ROUND(+E138*D138,2)","v":29484}]
[null,"LOCAÇÃO DE SERVIÇOS DE TERRAPLENAGEM DE OBRAS CIVIS ","m2",56700,1.48,{"$f":"ROUND(+E139*D139,2)","v":83916}]
["3.1.2","COMPACTACAO MECANICA C/ CONTROLE DO GC>=95% DO PN (AREAS) (C/MONIVELADORA 140 HP E ROLO COMPRESSOR VIBRATORIO 80 HP)","m3",76770,6.54,502075.8]
["3.1.3","ESC. CARGA TRANSP. MAT 1A CAT DMT 50 A 200M C/E","m3",22770,4.59,104514.3]
["3.1.4","ESC. CARGA TRANSP. MAT 3ª CAT DMT 800 A 1000 M","m3",13293,32.78,435744.54]
["3.1.5","MOMENTO EXTRAORDINÁRIO DE TRANSP. DE MAT. DE 1ª E/OU 2ª","m3 x km",399150,1.42,566793]
["3.1.6","MOMENTO EXTRAORDINÁRIO DE TRANSP. DE MAT. DE 3ª","m3 x km",53172,2.81,{"$f":"ROUND(+E144*D144,2)","v":149413.32}]
["3.1.7","REVESTIMENTO VEGETAL DE TALUDES","m2",5040,2.06,10382.4]
["3.1.8","COLOCAÇÃO DE MANTA TERMOPLÁSTICA, PEAD, GEOMEMBRANA TEXTURIZADA E=1,00MM, NBR 15352","m2",118324.35,6.16,{"$f":"ROUND(+E146*D146,2)","v":728878}]
["3.1.9","ATERRO COMPACTADO UTILIZANDO SOLO CIMENTO NO TRAÇO 1:20, ABRANGENDO   ESPALHAMENTO, HOMOGENEIZAÇÃO, UMEDECIMENTO E COMPACTAÇÃO MECÂNICA LEVE, 5 CM DE ESPESSURA, INCLUSIVE FORNECIMENTO DO MATERIAL PROVENIENTE DE JAZIDA A UMA DISTÂNCIA MÁXIMA DE 10,0 KM","m3",5039.2299999999996,175.83,{"$f":"ROUND(+E147*D147,2)","v":886047.81}]
["3.1.10","CONCRETO SIMPLES Fck = 15 Mpa, LANÇADO E ADENSADO","m3",1702.25,348.58,593370.31000000006]
["3.1.11","CONFORMACAO GEOMETRICA DE PLATAFORMA PARA EXECUCAO DE REVESTIMENTO PRIMARIO","m2",15300,0.17,{"$f":"ROUND(+E149*D149,2)","v":2601}]
["3.1.12","REVESTIMENTO PRIMÁRIO C/ MAT. DE JAZIDA, C/T ATE 1000m","m3",3060,14.34,43880.4]
["3.2","FORNECIMENTO DE MATERIAIS",null,null,null,{"$f":"SUM(F152)","v":2104990.19}]
["32.1",{"$f":"IF($B152=\"ORSE\",VLOOKUP($C152,[6]orse_ins!#REF!,5,0),IF($B152=\"SINAPI\",VLOOKUP($C152,[6]sinapi_ins!#REF!,2,0),IF($B152=\"SEINFRA\",VLOOKUP($C152,[6]seinfra_ins!#REF!,2,0),\"\")))","v":"MANTA TERMOPLASTICA, PEAD, GEOMEMBRANA LISA, E = 1,00 MM ( NBR 15352)"},{"$f":"C146","v":"m2"},118324.35,17.79,{"$f":"ROUND(+E152*D152,2)","v":2104990.19}]
["4.","REDES DE PRESSURIZAÇÃO",null,null,null,{"$f":"F154+F173+F175","v":7182370.9800000004}]
["4.1","OBRAS CIVIS",null,null,null,{"$f":"SUM(F155:F172)","v":6828568.0599999996}]
["4.1.1","LOCAÇÃO DE EIXOS EM GERAL, COM ESTAQUEAMENTO ","m",80387.899999999994,1.78,{"$f":"ROUND(+E155*D155,2)","v":143090.46}]
["4.1.2","DESMATAMENTO E LIMPEZA MECANIZADA DE TERRENO COM ARVORES ATE Ø 15CM, UTILIZANDO TRATOR DE ESTEIRAS","m2",1607758,0.52,{"$f":"ROUND(+E156*D156,2)","v":836034.16}]
["4.1.2","LOCAÇÃO DE REDES DE ÁGUA OU DE ESGOTO","m",80387.899999999994,1.29,{"$f":"ROUND(+E157*D157,2)","v":103700.39}]
["4.1.3","ESCAVAÇÃO MECANIZADA DE VALAS, EM MATERIAL DE 1ª E/OU 2ª CATEGORIA, ATÉ 2m DE PROFUNDIDADE","m3",42399.25,11.72,496919.21]
["4.1.4","ESCAVAÇÃO VALA, MAT. DE 3ª, PROF.  ATÉ 2m, C/T ATÉ 1000m","m3",12061.84,96.25,1160952.1000000001]
["4.1.5","ESCAVAÇÃO VALA, MAT. DE 3ª, PROF. 2-4m, C/T ATÉ 1000m","m3",30,113.8,{"$f":"ROUND(+E160*D160,2)","v":3414}]
["4.1.6","ATERRO C/COMPACTAÇÃO MANUAL S/CONTROLE, MAT. C/AQUISIÇÃO","m3",18490.939999999999,83.63,1546397.31]
["4.1.7","REATERRO COMPACTADO MECANICAMENTE, S/ CONTROLE","m3",27752.52,19.34,536733.74]
["4.1.8","MOMENTO EXTRAORDINÁRIO DE TRANSP. DE MAT. DE 1ª E/OU 2ª","m3 x km",740417.6,1.42,1051392.99]
["4.1.9","MOMENTO EXTRAORDINÁRIO DE TRANSP. DE MAT. DE 3ª","m3 x km",120918.39999999999,2.81,339780.7]
["4.1.10","LASTRO DE AREIA ADQUIRIDA","m3",4209.04,86.89,365723.49]
["4.1.11","CONCRETO ESTRUTURAL FCK= 20,0 MPA, LANÇADO E ADENSADO ","m3",30.71,430.31,13214.82]
["4.1.12","CONCRETO SIMPLES FCK= 15,0 MPA, LANÇADO E ADENSADO ","m3",94.06,348.58,32787.43]
["4.1.13","FORMA PLANA PARA ESTRUTURAS, EM COMPENSADO PLASTIFICADO DE 12MM, 05 USOS, INC LUSIVE ESCORAMENTO - REVISADA 07.2015 ","m2",62,63.03,3907.86]
["4.1.14","ARMADURA DE AÇO CA 50/60 - MONTAGEM","kg",2483.8000000000002,2.4500000000000002,6085.31]
["4.1.15","ALVENARIA BLOCO CONCRETO ESTRUTURAL 19X19X39CM, FBK 8 MPA, ESP = 0,19M,  COM ARGAMASSA TRAÇO T5 - 1:2:8 (CIMENTO/CAL/AREIA), JUNTA 2CM ","m2",2230.59,72.599999999999994,161940.82999999999]
["4.1.16","DRENO, 25 CM TUBO PVC DN 50 MM, INCLUSIVE MATERIAL DRENANTE (BIDIM E BRITA) - CAIXA DE BRITA ENVOLVIDA POR BIDIM 20x20 CM","un",206,22.35,4604.1000000000004]
["4.1.17","ESCADA TIPO MARINHEIRO EM ACO CA-50 9,52MM INCLUSO PINTURA COM FUNDO ANTICORROSIVO TIPO ZARCAO","m",309.3,70.77,21889.16]
["4.2","FORNECIMENTO DE MATERIAIS",null,null,null,{"$f":"SUM(F174)","v":14753.77}]
["4.2.1","ARMADURA DE AÇO CA 50/60 - FORNECIMENTO DOS MATERIAIS","kg",2483.8000000000002,5.94,{"$f":"ROUND(+E174*D174,2)","v":14753.77}]
["4.3","MONTAGEM DE EQUIPAMENTOS",null,null,null,{"$f":"SUM(F176:F183)","v":339049.15}]
["4.3.1","ASSENTAMENTO DE TUBULAÇÃO PONTA E BOLSA EM PVC OU PRFV OU RPVC OU CPRFV COM CONEXÕES E PEÇAS ESPECIAIS - DN - 100mm, INCLUSIVE CARGA, TRANSPORTE E DESCARGA","m",15820,2.54,{"$f":"ROUND(+E176*D176,2)","v":40182.800000000003}]
["4.3.2","ASSENTAMENTO DE TUBULAÇÃO PONTA E BOLSA EM PVC OU PRFV OU RPVC OU CPRFV COM CONEXÕES E PEÇAS ESPECIAIS - DN - 150mm, INCLUSIVE CARGA, TRANSPORTE E DESCARGA","m",12714,3.14,39921.96]
["4.3.3","ASSENTAMENTO DE TUBULAÇÃO PONTA E BOLSA EM PVC OU PRFV OU RPVC OU CPRFV COM CONEXÕES E PEÇAS ESPECIAIS - DN - 200mm, INCLUSIVE CARGA, TRANSPORTE E DESCARGA","m",8929,3.73,33305.17]
["4.3.4","ASSENTAMENTO DE TUBULAÇÃO PONTA E BOLSA EM PVC OU PRFV OU RPVC OU CPRFV COM CONEXÕES E PEÇAS ESPECIAIS - DN - 250mm, INCLUSIVE CARGA, TRANSPORTE E DESCARGA","m",11195,4.34,48586.3]
["4.3.5","ASSENTAMENTO DE TUBULAÇÃO PONTA E BOLSA EM PVC OU PRFV OU RPVC OU CPRFV COM CONEXÕES E PEÇAS ESPECIAIS - DN - 300mm, INCLUSIVE CARGA, TRANSPORTE E DESCARGA","m",9823,5.37,52749.51]
["4.3.6","ASSENTAMENTO DE TUBULAÇÃO PONTA E BOLSA EM PVC OU PRFV OU RPVC OU CPRFV COM CONEXÕES E PEÇAS ESPECIAIS - DN - 350mm, INCLUSIVE CARGA, TRANSPORTE E DESCARGA","m",8289,5.99,49651.11]
["4.3.7","ASSENTAMENTO DE TUBULAÇÃO PONTA E BOLSA EM PVC OU PRFV OU RPVC OU CPRFV COM CONEXÕES E PEÇAS ESPECIAIS - DN - 400mm, INCLUSIVE CARGA, TRANSPORTE E DESCARGA","m",4050,8.2799999999999994,33534]
["4.3.8","ASSENTAMENTO DE TUBULAÇÃO PONTA E BOLSA EM PVC OU PRFV OU RPVC OU CPRFV COM CONEXÕES E PEÇAS ESPECIAIS - DN - 450mm, INCLUSIVE CARGA, TRANSPORTE E DESCARGA","m",4365,9.42,41118.300000000003]
["5.","TOMADAS PARCELARES DOS LOTES DE PEQUENOS IRRIGANTES",null,null,null,{"$f":"F185+F198","v":275918.95}]
["5.1","OBRAS CIVIS",null,null,null,{"$f":"SUM(F186:F197)","v":205379.95}]
["5.1.1","ESCAVAÇÃO MECANIZADA DE VALAS, EM MATERIAL DE 1ª E/OU 2ª CATEGORIA, ATÉ 2m DE PROFUNDIDADE","m3",132.13,11.72,{"$f":"ROUND(+E186*D186,2)","v":1548.56}]
["5.1.2","ESCAVAÇÃO VALA, MAT. DE 3ª, PROF.  ATÉ 2m, C/T ATÉ 1000m","m3",84.94,96.25,8175.48]
["5.1.3","ATERRO C/COMPACTAÇÃO MANUAL S/CONTROLE, MAT. C/AQUISIÇÃO","m3",113.25,83.63,9471.1]
["5.1.4","MOMENTO EXTRAORDINÁRIO DE TRANSP. DE MAT. DE 1ª E/OU 2ª","m3 x km",566.25,1.42,804.08]
["5.1.5","MOMENTO EXTRAORDINÁRIO DE TRANSP. DE MAT. DE 3ª","m3 x km",849.4,2.81,{"$f":"ROUND(+E190*D190,2)","v":2386.81}]
["5.1.6","CONCRETO ESTRUTURAL FCK= 20,0 MPA, LANÇADO E ADENSADO ","m3",47.19,430.31,20306.330000000002]
["5.1.7","CONCRETO SIMPLES FCK= 15,0 MPA, LANÇADO E ADENSADO ","m3",73,348.58,25446.34]
["5.1.8","AÇO ESPECIAL CA-50/60 - FONECIMENTO DOS MATERIAIS","kg",3303.13,5.94,19620.59]
["5.1.9","AÇO ESPECIAL CA-50/60 - MONTAGEM E INSTALAÇÃO","kg",3303.13,2.4500000000000002,8092.67]
["5.1.10","FORMA PLANA PARA ESTRUTURAS, EM COMPENSADO PLASTIFICADO DE 12MM, 05 USOS, EXC LUSIVE ESCORAMENTO - REVISADA 07.2015 ","m2",849.38,36.950000000000003,31384.59]
["5.1.11","ALVENARIA DE BLOCOS DE CONCRETO - 14x19x39cm","m2",984,72.599999999999994,71438.399999999994]
["5.1.12","DRENO, 25 CM TUBO PVC DN 50 MM, INCLUSIVE MATERIAL DRENANTE (BIDIM E BRITA) - CAIXA DE BRITA ENVOLVIDA POR BIDIM 20x20 CM","un",300,22.35,6705]
["5.2","MONTAGEM DE EQUIPAMENTOS",null,null,null,{"$f":"SUM(F199:F199)","v":70539}]
["5.2.1","MONTAGEM DE TOMADA PARCELAR","un",300,235.13,{"$f":"ROUND(+E199*D199,2)","v":70539}]
["6.","REDE DE DRENAGEM",null,null,null,{"$f":"F201+F225","v":4623321.4400000004}]
["6.1","OBRAS CIVIS",null,null,null,{"$f":"F202+F211","v":3650456.5}]
["6.1.1","REDE PRINCIPAL",null,null,null,{"$f":"SUM(F203:F210)","v":2566510.06}]
["6.1.1.1","LOCAÇÃO DE REDE DE DRENAGEM ","m",136834,1.83,{"$f":"D203*E203","v":250406.22}]
["6.1.1.2","DESMATAMENTO E LIMPEZA MECANIZADA DE TERRENO COM ARVORES ATE Ø 15CM, UTILIZANDO TRATOR DE ESTEIRAS","m2",169338.3,0.52,{"$f":"D204*E204","v":88055.92}]
["6.1.1.3","MOMENTO EXTRAORDINÁRIO DE TRANSP. DE MAT. DE 1ª E/OU 2ª","m³xkm",615753,1.42,{"$f":"D205*E205","v":874369.26}]
["6.1.1.4","FORNECIMENTO E LANCAMENTO DE PEDRA DE MAO","m³",188,190.1,{"$f":"D206*E206","v":35738.800000000003}]
["6.1.1.5","ESCAVAÇÃO MECANIZADA DE VALAS, EM MATERIAL DE 1ª E/OU 2ª CATEGORIA, ATÉ 2m DE PROFUNDIDADE, C/T ATÉ 200M","m³",59659.1,14.4,859091.04]
["6.1.1.6","ESCAVAÇÃO VALA, MAT. DE 3ª, PROF.  ATÉ 2m, C/T ATÉ 1000m","m³",1916.2,96.25,184434.25]
["6.1.1.7","CONCRETO SIMPLES FCK= 15,0 MPA, LANÇADO E ADENSADO ","m³",740.3,348.58,258053.77]
["6.1.1.8","ENROCAMENTO COM PEDRA ARGAMASSADA TRAÇO 1:4 COM PEDRA DE MÃO","m³",40,409.02,16360.8]
["6.1.2","BUEIROS/GALERIAS",null,null,null,{"$f":"SUM(F212:F224)","v":1083946.44}]
["6.1.2.1","ENROCAMENTO COM PEDRA BRUTA LANÇADA ","m³",7,138.27000000000001,{"$f":"D212*E212","v":967.89}]
["6.1.2.2","FORMA PLANA PARA ESTRUTURAS, EM COMPENSADO PLASTIFICADO DE 12MM, 05 USOS, EXC LUSIVE ESCORAMENTO - REVISADA 07.2015 ","m²",3195,36.950000000000003,118055.25]
["6.1.2.3","CONCRETO ESTRUTURAL FCK= 20,0 MPA, LANÇADO E ADENSADO ","m³",340,430.31,146305.4]
["6.1.2.4","ARMADURA DE AÇO CA 50/60 - MONTAGEM","kg",28340,2.4500000000000002,69433]
["6.1.2.5","REATERRO COMPACTADO MECANICAMENTE, S/ CONTROLE","m³",6248,19.34,120836.32]
["6.1.2.6","ESCAVAÇÃO MECANIZADA DE VALAS, EM MATERIAL DE 1ª E/OU 2ª CATEGORIA, ACIMA DE 2m E ATÉ 4m DE PROFUNDIDADE","m³",662.2,16.12,10674.66]
["6.1.2.7","ESCAVAÇÃO VALA, MAT. DE 3ª, PROF. 2-4m, C/T ATÉ 1000m","m³",914.1,113.8,104024.58]
["6.1.2.8","ESCAVAÇÃO MECANIZADA DE VALAS, EM MATERIAL DE 1ª E/OU 2ª CATEGORIA, ATÉ 2m DE PROFUNDIDADE","m³",6755.1,11.72,79169.77]
["6.1.2.9","CONCRETO SIMPLES FCK= 15,0 MPA, LANÇADO E ADENSADO ","m³",28,348.58,9760.24]
["6.1.2.10","CONCRETO CICLOPICO FCK=10MPA 30% PEDRA DE MAO INCLUSIVE LANCAMENTO","m³",556,405.83,225641.48]
["6.1.2.11","ASSENTAMENTO DE TUBO DE CONCRETO ARMADO CA2 D=0,80 M ","m",36,47.1,1695.6]
["6.1.2.12","ASSENTAMENTO DE TUBO DE CONCRETO ARMADO CA2 D=1,00 M ","m",715,78.510000000000005,56134.65]
["6.1.2.13","ASSENTAMENTO DE TUBO DE CONCRETO ARMADO CA2 D=1,20 M ","m",1181,119.6,141247.6]
["6.2","FORNECIMENTO DE MATERIAIS",null,null,null,{"$f":"SUM(F226:F229)","v":972864.94}]
["6.2.1","FORNECIMENTO DE TUBO DE CONCRETO ARMADO CA2 D=0,80 M ","m",36,242.71,8737.56]
["6.2.2","FORNECIMENTO DE TUBO DE CONCRETO ARMADO CA2 D=1,00 M ","m",715,333.15,238202.25]
["6.2.3","FORNECIMENTO DE TUBO DE CONCRETO ARMADO CA2 D=1,20 M ","m",1181,472.13,557585.53]
["6.2.5","ARMADURA DE AÇO CA 50/60 - FORNECIMENTO DOS MATERIAIS","kg",28340,5.94,168339.6]
["7.","REDE VIÁRIA",null,null,null,{"$f":"F231","v":2350093.4}]
["7.1","OBRAS CIVIS",null,null,null,{"$f":"SUM(F232:F235)","v":2350093.4}]
["7.1.1","LOCAÇÃO TOPOGRÁFICA COM NIVELAMENTO DE SEÇÕES TRANSVERSAIS DE SERVIÇOS DE TER RAPLENAGEM, INCLUSIVE CONFERÊNCIAS ","m",17050.669999999998,4.09,{"$f":"ROUND(+E232*D232,2)","v":69737.240000000005}]
["7.1.2","CONFORMACAO GEOMETRICA DE PLATAFORMA PARA EXECUCAO DE REVESTIMENTO PRIMARIO EM RODOVIAS VICINAIS","m2",511520,0.17,{"$f":"ROUND(+E233*D233,2)","v":86958.399999999994}]
["7.1.3","REVESTIMENTO PRIMÁRIO C/ MAT. DE JAZIDA, C/T ATE 1000m","m3",102304,14.34,{"$f":"ROUND(+E234*D234,2)","v":1467039.36}]
["7.1.4","MOMENTO EXTRAORDINÁRIO DE TRANSP. DE MAT. DE 1ª E/OU 2ª","m3 x km",511520,1.42,{"$f":"ROUND(+E235*D235,2)","v":726358.4}]
[null,"T O T A L   ",null,null,"R$",{"$f":"F8+F230+F200+F184+F153+F136+F17","v":32144770.949999999}]